fUSD/lending_fUSD_20240125
["ID","MTS","AMOUNT","RATE_DAILY","PERIOD"]
[312759501,1706200239822,-500.0,0.00022999,2]
[312759503,1706200239831,-500.0,0.00022999,2]
[312759505,1706200239840,-500.0,0.00022999,2]
[312759507,1706200239851,-500.0,0.00022999,2]
[312759509,1706200239861,-500.0,0.00022999,2]
[312759511,1706200239870,-500.0,0.00022999,2]
[312759513,1706200239878,-500.0,0.00022999,2]
[312759515,1706200239888,-500.0,0.00022999,2]
[312759517,1706200239897,-500.0,0.00022999,2]
[312759519,1706200239908,-500.0,0.00022999,2]
[312759521,1706200239918,-500.0,0.00022999,2]
[312759523,1706200239928,-500.0,0.00022999,2]
[312759525,1706200239937,-500.0,0.00022999,2]
[312759527,1706200239947,-500.0,0.00022999,2]
[312759529,1706200239956,-500.0,0.00022999,2]
[312759531,1706200239965,-500.0,0.00022999,2]
[312759533,1706200239974,-500.0,0.00022999,2]
[312759535,1706200239983,-500.0,0.00022999,2]
[312759537,1706200239993,-500.0,0.00022999,2]
[312759539,1706200240002,-500.0,0.00022999,2]
[312759541,1706200240011,-500.0,0.00022999,2]
[312759543,1706200240020,-300.15446551,0.00022999,2]
[312759545,1706200240029,-500.0,0.00022999,2]
[312759547,1706200240041,-500.0,0.00022999,2]
[312759549,1706200240050,-500.0,0.00022999,2]
[312759551,1706200240059,-500.0,0.00022999,2]
[312759553,1706200240069,-500.0,0.00022999,2]
[312759555,1706200240078,-500.0,0.00022999,2]
[312759557,1706200240088,-500.0,0.00022999,2]
[312759559,1706200240097,-500.0,0.00022999,2]
[312759561,1706200240108,-500.0,0.00022999,2]
[312759563,1706200240118,-500.0,0.00022999,2]
[312759565,1706200240128,-500.0,0.00022999,2]
[312759567,1706200240137,-500.0,0.00022999,2]
[312759569,1706200240146,-500.0,0.00022999,2]
[312759571,1706200240155,-297.53995309,0.00022999,2]
[312759573,1706200240165,-500.0,0.00022999,2]
[312759575,1706200240174,-500.0,0.00022999,2]
[312759577,1706200240183,-500.0,0.00022999,2]
[312759579,1706200240192,-500.0,0.00022999,2]
[312759581,1706200240202,-500.0,0.00022999,2]
[312759583,1706200240211,-500.0,0.00022999,2]
[312759585,1706200240221,-324.79163949,0.00022999,2]
[312759587,1706200240230,-1738968.51489108,0.00023,2]
[312759589,1706200240240,-1109369.20376443,0.00023,2]
[312759629,1706200240595,-1278.67946543,0.00023,2]
[312759631,1706200240607,-4588999.58219508,0.00023,2]
[312759634,1706200240618,-155644.90766164,0.00023,2]
[312759636,1706200240633,-1863.2359389,0.00023,2]
[312759638,1706200240644,-307.60963438,0.00023,2]
[312759643,1706200240680,-39865.24291392,0.00023,2]
[312759645,1706200240691,-5857.88063624,0.00023,2]
[312759648,1706200240702,-5628.37510904,0.00023,2]
[312759650,1706200240713,-954.94613612,0.00023,2]
[312759702,1706200241275,-150.0,0.00022727,2]
[312759704,1706200241285,-49720.11184802,0.00023,2]
[312759706,1706200241295,-223.07409071,0.00023,20]
[312759708,1706200241304,-200.0,0.00023,2]
[312759710,1706200241313,-19156.27488788,0.00023,2]
[312759712,1706200241323,-200.0,0.00023,2]
[312759714,1706200241333,-2000.0,0.00023,2]
[312759716,1706200241343,-200.0,0.00023,2]
[312759718,1706200241353,-150.78,0.00023036,2]
[312759720,1706200241362,-176.54,0.00023096,2]
[312759722,1706200241371,-7223.90112909,0.0002313,2]
[312759723,1706200241548,-1048.823638,0.00023155,2]
[312759724,1706200241558,-159.28,0.00023165,2]
[312759725,1706200241568,-200.0,0.0002323,2]
[312759726,1706200241578,-1402.05,0.00023245,2]
[312759727,1706200241588,-166.28,0.00023249,2]
[312759728,1706200241599,-1007.82,0.00023292,2]
[312759729,1706200241609,-200.0,0.00023462,2]
[312759730,1706200241618,-176.54,0.00023644,2]
[312759731,1706200241629,-230.27,0.0002369,2]
[312759732,1706200241638,-200.0,0.00023697,2]
[312759733,1706200241647,-200.0,0.00023934,2]
[312759734,1706200241657,-5035.49964229,0.00023991,2]
[312759735,1706200241669,-500.97437734,0.00023998,2]
[312759736,1706200241679,-1402.05,0.00024046,2]
[312759737,1706200241688,-176.54,0.00024192,2]
[312759738,1706200241699,-412.7,0.00024207,2]
[312759739,1706200241708,-1000.0,0.00024293,2]
[312759740,1706200241718,-167.69,0.00024297,2]
[312759741,1706200241728,-217.69646664,0.000243,2]
[312759742,1706200241738,-623.06579618,0.00024415,2]
[312759743,1706200241747,-150.78,0.00024476,2]
[312759744,1706200241758,-230.27,0.00024528,2]
[312759745,1706200241767,-250.0,0.00024658,2]
[312759746,1706200241778,-176.54,0.0002474,2]
[312759747,1706200241787,-1402.05,0.00024847,2]
[312759748,1706200241797,-1007.82,0.00024936,2]
[312759749,1706200241806,-435.04507751,0.00025,2]
[312759750,1706200241815,-303.74458375,0.00025,2]
[312759751,1706200241824,-167.53295169,0.00025,2]
[312759752,1706200241833,-838.44182099,0.00025,2]
[312759753,1706200241842,-202.21011162,0.00025,2]
[312759754,1706200241851,-1122.36571008,0.00025,2]
[312759755,1706200241859,-644.52139302,0.00025,7]
[312759756,1706200241871,-450.0,0.00025,3]
[312759757,1706200241882,-5035.49964229,0.00025082,2]
[312759758,1706200241891,-302.30688624,0.00025288,2]
[312759759,1706200241901,-230.27,0.00025366,2]
[312759760,1706200241911,-150.78,0.00025916,2]
[312759761,1706200241922,-500.0,0.00026,2]
[312759762,1706200241931,-153.85696089,0.00026052,2]
[312759763,1706200241942,-623.06579618,0.00026163,3]
[312759764,1706200241952,-5035.49964229,0.00026173,2]
[312759765,1706200241963,-230.27,0.00026204,2]
[312759766,1706200241974,-549.0,0.000263,2]
[312759767,1706200241983,-167.69,0.00026302,2]
[312759768,1706200241995,-8010.0,0.000264,2]
[312759769,1706200242005,-412.7,0.00026471,2]
[312759770,1706200242014,-1607.47,0.00026575,2]
[312759771,1706200242024,-2306.2,0.00026575,2]
[312759772,1706200242034,-1000.0,0.00026575,2]
[312759773,1706200242045,-1007.82,0.0002658,2]
[312759774,1706200242054,-1000.0,0.00026992,2]
[312759775,1706200242064,-412.83305928,0.00027,2]
[312759776,1706200242073,-500.0,0.00027,3]
[312759777,1706200242084,-230.27,0.00027042,2]
[312759778,1706200242093,-5035.49964229,0.00027264,2]
[312759779,1706200242102,-155.0,0.00027397,2]
[312759780,1706200242112,-300.0,0.00027397,5]
[312759781,1706200242122,-1345.08,0.00027397,2]
[312759782,1706200242132,-591.69,0.00027397,2]
[312759783,1706200242141,-302.75,0.000274,2]
[312759784,1706200242152,-302.75,0.000274,2]
[312759785,1706200242161,-302.75,0.000274,2]
[312759786,1706200242172,-302.75,0.000274,2]
[312759787,1706200242181,-302.75,0.000274,2]
[312759788,1706200242190,-302.75,0.000274,2]
[312759789,1706200242200,-302.75,0.000274,2]
[312759790,1706200242209,-302.75,0.000274,2]
[312759791,1706200242220,-302.75,0.000274,2]
[312759792,1706200242229,-302.75,0.000274,2]
[312759793,1706200242238,-12925.43775034,0.000275,2]
[312759794,1706200242247,-229.57187333,0.000275,2]
[312759795,1706200242256,-1345.08,0.00027686,2]
[312759796,1706200242265,-230.27,0.0002788,2]
[312759797,1706200242274,-623.06579618,0.0002791,3]
[312759798,1706200242283,-300.0,0.00027945,5]
[312759799,1706200242292,-1345.08,0.00027974,2]
[312759800,1706200242307,-692.63077835,0.00028,2]
[312759801,1706200242316,-1007.82,0.00028223,2]
[312759802,1706200242325,-1345.08,0.00028262,2]
[312759803,1706200242334,-167.69,0.00028307,2]
[312759804,1706200242343,-5035.49964229,0.00028355,2]
[312759805,1706200242353,-300.0,0.00028493,5]
[312759806,1706200242362,-1345.08,0.00028551,2]
[312759807,1706200242370,-230.27,0.00028718,2]
[312759808,1706200242379,-412.7,0.00028734,2]
[312759809,1706200242388,-155.0,0.00028767,2]
[312759810,1706200242397,-1345.08,0.00028839,2]
[312759811,1706200242406,-29715.71313864,0.00029,2]
[312759812,1706200242414,-616.39154108,0.00029,15]
[312759813,1706200242424,-1674.91348703,0.00029,2]
[312759814,1706200242433,-550.0,0.00029,3]
[312759815,1706200242442,-300.0,0.00029041,5]
[312759816,1706200242451,-1345.08,0.00029128,2]
[312759817,1706200242460,-153.85696089,0.00029204,2]
[312759818,1706200242469,-1345.08,0.00029416,2]
[312759819,1706200242478,-5035.49964229,0.00029445,2]
[312759820,1706200242487,-300.0,0.00029589,5]
[312759821,1706200242496,-623.06579618,0.00029658,4]
[312759822,1706200242505,-1000.0,0.00029692,2]
[312759823,1706200242514,-1345.08,0.00029704,2]
[312759824,1706200242524,-1007.82,0.00029867,2]
[312759825,1706200242533,-71224.50635984,0.000299,2]
[312759826,1706200242542,-400.0,0.000299,10]
[312759827,1706200242551,-1345.08,0.00029993,2]
[312759828,1706200242560,-155.0,0.0003,2]
[312759829,1706200242569,-694.42463172,0.0003,2]
[312759830,1706200242578,-764.8442482,0.0003,4]
[312759831,1706200242587,-691.2394096,0.0003,4]
[312759832,1706200242596,-8855.08388633,0.0003,4]
[312759833,1706200242605,-12091.87441367,0.0003,4]
[312759834,1706200242614,-584.76109505,0.0003,2]
[312759835,1706200242623,-734.74285332,0.0003,4]
[312759836,1706200242632,-179715.6169145,0.0003,4]
[312759837,1706200242641,-312.81536894,0.0003,4]
[312759838,1706200242650,-9676.61262292,0.0003,2]
[312759839,1706200242659,-395.58376861,0.0003,4]
[312759840,1706200242669,-7409.18420384,0.0003,7]
[312759841,1706200242678,-315.6495,0.0003,2]
[312759842,1706200242687,-315.6495,0.0003,2]
[312759843,1706200242696,-315.64951,0.0003,2]
[312759844,1706200242705,-315.64951,0.0003,2]
[312759845,1706200242716,-315.64951,0.0003,2]
[312759846,1706200242726,-315.64951,0.0003,2]
[312759847,1706200242737,-203.0,0.0003,2]
[312759848,1706200242747,-1000.0,0.0003,2]
[312759849,1706200242757,-152.47,0.00030137,2]
[312759850,1706200242766,-155.0,0.00030137,2]
[312759851,1706200242775,-490.46593515,0.00030137,5]
[312759852,1706200242784,-1345.08,0.00030281,2]
[312759853,1706200242794,-5035.49964229,0.00030536,2]
[312759854,1706200242803,-1345.08,0.00030569,2]
[312759855,1706200242811,-450.38,0.00030631,2]
[312759856,1706200242820,-1345.08,0.00030858,2]
[312759858,1706200242829,-412.7,0.00030998,2]
[312759860,1706200242838,-340.08491371,0.00031,4]
[312759862,1706200242847,-1223.03302486,0.00031,7]
[312759864,1706200242856,-600.0,0.00031,3]
[312759866,1706200242865,-1345.08,0.00031146,2]
[312759867,1706200242874,-152.47,0.00031355,2]
[312759868,1706200242884,-623.06579618,0.00031405,5]
[312759869,1706200242893,-1345.08,0.00031435,2]
[312759870,1706200242902,-155.0,0.00031507,2]
[312759871,1706200242911,-5035.49964229,0.00031627,3]
[312759872,1706200242922,-180.0,0.00031644,2]
[312759873,1706200242931,-191.32,0.00031644,2]
[312759875,1706200242940,-15792.87212099,0.000317,2]
[312759876,1706200242949,-1345.08,0.00031723,2]
[312759878,1706200242958,-123173.815392,0.000318,3]
[312759880,1706200242967,-155.0,0.00032,2]
[312759882,1706200242976,-13097.36826834,0.00032,4]
[312759883,1706200242985,-1345.08,0.00032011,2]
[312759885,1706200242994,-1345.08,0.000323,2]
[312759888,1706200243004,-153.85696089,0.00032355,2]
[312759890,1706200243013,-1000.0,0.00032391,2]
[312759891,1706200243021,-202.24958339,0.000325,2]
[312759893,1706200243031,-152.47,0.00032572,2]
[312759895,1706200243043,-1345.08,0.00032588,2]
[312759896,1706200243051,-5035.49964229,0.00032718,4]
[312759898,1706200243061,-1345.08,0.00032877,2]
[312759900,1706200243071,-500.0,0.00032877,2]
[312759902,1706200243082,-202.5,0.00032877,15]
[312759903,1706200243091,-500.0,0.00032877,2]
[312759904,1706200243100,-155.0,0.00032877,2]
[312759905,1706200243110,-6415.03483043,0.00033,4]
[312759906,1706200243119,-50000.0,0.00033,4]
[312759907,1706200243129,-172.46286052,0.00033,4]
[312759908,1706200243138,-650.0,0.00033,3]
[312759910,1706200243147,-203.0,0.00033,2]
[312759912,1706200243157,-623.06579618,0.00033153,6]
[312759914,1706200243168,-412.7,0.00033262,2]
[312759916,1706200243177,-150.0,0.000336,2]
[312759918,1706200243186,-175.0,0.00033661,2]
[312759919,1706200243195,-152.47,0.0003379,2]
[312759920,1706200243205,-232.88475836,0.000338,4]
[312759921,1706200243214,-5035.49964229,0.00033809,6]
[312759922,1706200243224,-1000.0,0.00034,4]
[312759923,1706200243234,-304.70542647,0.00034,4]
[312759924,1706200243244,-155.70150421,0.00034,4]
[312759925,1706200243256,-155.0,0.00034247,2]
[312759926,1706200243265,-5000.0,0.000345,15]
[312759927,1706200243274,-4324.87772428,0.00034632,2]
[312759928,1706200243283,-15792.85,0.000347,2]
[312759929,1706200243292,-564.31998884,0.00034877,2]
[312759930,1706200243301,-489227.03321555,0.0003488,2]
[312759931,1706200243310,-2590.24931817,0.000349,4]
[312759932,1706200243319,-14929.53004618,0.000349,5]
[312759933,1706200243338,-530.98310293,0.000349,2]
[312759934,1706200243349,-530.98310274,0.000349,2]
[312759935,1706200243359,-530.98310274,0.000349,2]
[312759936,1706200243368,-530.98310274,0.000349,2]
[312759937,1706200243378,-530.98310274,0.000349,2]
[312759938,1706200243387,-530.98310274,0.000349,2]
[312759939,1706200243397,-530.98310274,0.000349,2]
[312759940,1706200243406,-530.98310274,0.000349,2]
[312759941,1706200243416,-5035.49964229,0.000349,7]
[312759942,1706200243425,-623.06579618,0.000349,7]
[312759943,1706200243435,-313.07250057,0.0003498,14]
[312759944,1706200243444,-4514.55991072,0.00034997,2]
[312759945,1706200243454,-1657.72884801,0.00035,2]
[312759946,1706200243463,-1050.6092086,0.00035,14]
[312759947,1706200243472,-386.3789758,0.00035,4]
[312759948,1706200243482,-3174916.75742216,0.00035,7]
[312759949,1706200243491,-1262.24661456,0.00035,4]
[312759950,1706200243501,-155.0,0.00035,2]
[312759951,1706200243510,-15795.00750885,0.00035,7]
[312759952,1706200243519,-151.62619404,0.00035,2]
[312759954,1706200243528,-7699.98598477,0.00035,2]
[312759956,1706200243537,-7699.98598477,0.00035,2]
[312759958,1706200243547,-700.0,0.00035,3]
[312759960,1706200243556,-152.47,0.00035008,2]
[312759962,1706200243565,-153.85696089,0.00035507,2]
[312759964,1706200243575,-412.7,0.00035526,2]
[312759966,1706200243584,-530.98310274,0.00035529,2]
[312759968,1706200243593,-150.0,0.00035616,2]
[312759970,1706200243602,-300.0,0.00035616,7]
[312759971,1706200243611,-450.0,0.00035616,12]
[312759972,1706200243621,-150.0,0.00035616,17]
[312759973,1706200243630,-155.0,0.00035617,2]
[312759974,1706200243640,-9163.71,0.000357,7]
[312759975,1706200243649,-8477.1,0.000357,7]
[312759976,1706200243659,-400.0,0.000359,13]
[312759977,1706200243669,-150.83351106,0.0003591,5]
[312759978,1706200243679,-128154.61758808,0.00036,2]
[312759979,1706200243689,-152.47,0.00036225,2]
[312759980,1706200243699,-150.524692,0.000363,2]
[312759981,1706200243710,-22278.88993204,0.000365,7]
[312759982,1706200243720,-202.5,0.00036613,15]
[312759983,1706200243729,-36458.11087486,0.0003666,2]
[312759984,1706200243739,-669.52477298,0.00037,7]
[312759985,1706200243748,-750.0,0.00037,3]
[312759986,1706200243758,-530.98310274,0.00037108,2]
[312759987,1706200243768,-152.47,0.00037443,2]
[312759988,1706200243777,-9163.71,0.000375,7]
[312759989,1706200243786,-8477.1,0.000377,7]
[312759990,1706200243795,-155.03,0.000377,3]
[312759991,1706200243805,-155.03,0.000377,3]
[312759992,1706200243816,-155.03,0.000377,3]
[312759993,1706200243825,-155.03,0.000377,3]
[312759994,1706200243835,-412.7,0.0003779,2]
[312759995,1706200243845,-1607.47,0.00037808,2]
[312759996,1706200243854,-2306.2,0.00037808,2]
[312759997,1706200243864,-279.71703256,0.00037898,4]
[312759998,1706200243873,-217.12374908,0.00037898,4]
[312759999,1706200243883,-268.17443877,0.00037899,4]
[312760000,1706200243892,-155.0,0.00037899,2]
[312760001,1706200243902,-307.15410335,0.00037899,30]
[312760002,1706200243914,-141107.73185424,0.000379,2]
[312760003,1706200243928,-7699.98598477,0.000379,2]
[312760004,1706200243939,-681009.878155,0.000379,3]
[312760005,1706200243949,-10006.70463429,0.000381,4]
[312760006,1706200243959,-150.01,0.00038356,2]
[312760007,1706200243968,-789.23481329,0.000384,2]
[312760008,1706200243978,-153.85696089,0.00038659,2]
[312760009,1706200243988,-152.47,0.0003866,2]
[312760010,1706200243997,-530.98310274,0.00038686,2]
[312760011,1706200244007,-204.17957361,0.000387,7]
[312760012,1706200244017,-233.57132903,0.00038805,7]
[312760013,1706200244027,-11000.0,0.00038805,8]
[312760014,1706200244038,-13101.3354078,0.00038805,8]
[312760015,1706200244048,-334.62460717,0.00038874,7]
[312760016,1706200244058,-3204.58079469,0.00038897,7]
[312760017,1706200244067,-450.45428815,0.00038921,7]
[312760018,1706200244078,-402.80401399,0.0003898,2]
[312760019,1706200244088,-225.98978178,0.00039,5]
[312760020,1706200244098,-800.0,0.00039,3]
[312760021,1706200244108,-1000.0,0.000393,15]
[312760022,1706200244120,-1000.0,0.000393,15]
[312760023,1706200244131,-175.0,0.00039423,2]
[312760024,1706200244141,-9163.71,0.000395,7]
[312760025,1706200244151,-8477.1,0.000395,7]
[312760026,1706200244160,-1000.0,0.000396,15]
[312760027,1706200244171,-152.47,0.00039878,2]
[312760028,1706200244184,-302.12672628,0.0004,14]
[312760029,1706200244194,-838.68112971,0.0004,2]
[312760030,1706200244204,-744.67492221,0.0004,30]
[312760031,1706200244213,-476.87,0.0004,30]
[312760032,1706200244223,-509.87575162,0.0004,2]
[312760033,1706200244232,-6612.3025,0.0004,10]
[312760034,1706200244242,-8600.0,0.0004,7]
[312760035,1706200244251,-412.7,0.00040054,2]
[312760036,1706200244260,-530.98310274,0.00040265,5]
[312760037,1706200244270,-202.5,0.00040349,15]
[312760038,1706200244279,-1485.05191128,0.00040349,12]
[312760039,1706200244288,-1599.14484876,0.00041,2]
[312760040,1706200244298,-850.0,0.00041,3]
[312760041,1706200244307,-152.47,0.00041096,2]
[312760042,1706200244318,-21994.06,0.00041096,5]
[312760043,1706200244327,-821.16116265,0.00041329,4]
[312760044,1706200244337,-313.68278446,0.00041348,120]
[312760045,1706200244346,-17767.608,0.00041348,7]
[312760046,1706200244356,-214.52240185,0.00041348,2]
[312760047,1706200244365,-47412.71773189,0.00041348,7]
[312760048,1706200244375,-9163.71,0.000415,7]
[312760049,1706200244385,-8477.1,0.000415,7]
[312760050,1706200244394,-155.03,0.000415,4]
[312760051,1706200244403,-155.03,0.000415,4]
[312760052,1706200244412,-155.03,0.000415,4]
[312760053,1706200244424,-155.03,0.000415,4]
[312760054,1706200244433,-200.0,0.00041552,5]
[312760055,1706200244443,-150.01,0.00041553,2]
[312760056,1706200244452,-153.85696089,0.00041811,13]
[312760057,1706200244462,-848.0,0.00041813,7]
[312760058,1706200244472,-1695.31,0.00041823,14]
[312760059,1706200244482,-530.98310274,0.00041844,5]
[312760060,1706200244492,-417.43,0.00041894,2]
[312760061,1706200244501,-840.85262393,0.00042,120]
[312760062,1706200244511,-1000.0,0.00042,3]
[312760063,1706200244521,-477.63808149,0.00042,4]
[312760064,1706200244530,-2231.75044759,0.00042,30]
[312760065,1706200244541,-203.0,0.00042148,10]
[312760066,1706200244550,-19402.7879606,0.00042187,2]
[312760067,1706200244559,-412.7,0.00042318,2]
[312760068,1706200244569,-360.5512069,0.00042492,7]
[312760069,1706200244578,-203.0,0.00043198,10]
[312760070,1706200244587,-1000.0,0.00043333,4]
[312760071,1706200244596,-530.98310274,0.00043423,5]
[312760072,1706200244605,-202.5,0.00044085,15]
[312760073,1706200244615,-203.0,0.00044248,10]
[312760074,1706200244624,-412.7,0.00044582,2]
[312760075,1706200244633,-150.01,0.00044749,2]
[312760076,1706200244643,-482.4422577,0.0004475,30]
[312760077,1706200244652,-9163.71,0.000448,7]
[312760078,1706200244662,-8477.1,0.000448,7]
[312760079,1706200244673,-153.85696089,0.00044962,25]
[312760080,1706200244683,-179.777452,0.00044997,30]
[312760081,1706200244692,-2421.251241,0.00044997,30]
[312760082,1706200244702,-1060.742747,0.00044997,30]
[312760083,1706200244712,-189.83257,0.00044997,30]
[312760084,1706200244725,-153.90867087,0.00045,30]
[312760085,1706200244742,-8600.0,0.00045,7]
[312760086,1706200244752,-278.0,0.00045,2]
[312760087,1706200244761,-530.98310274,0.00045002,5]
[312760088,1706200244916,-175.0,0.00045185,2]
[312760089,1706200244928,-155.03,0.000452,5]
[312760090,1706200244937,-155.03,0.000452,5]
[312760091,1706200244946,-155.03,0.000452,5]
[312760092,1706200244956,-155.03,0.000452,5]
[312760093,1706200244996,-203.0,0.00045298,12]
[312760094,1706200245010,-2421.251241,0.0004556,30]
[312760095,1706200245019,-1060.742747,0.0004556,30]
[312760096,1706200245028,-189.83257,0.0004556,30]
[312760097,1706200245039,-166.72,0.000459,7]
[312760098,1706200245049,-178.56,0.0004599,10]
[312760099,1706200245059,-227.37,0.0004599,10]
[312760100,1706200245068,-189.48,0.0004599,10]
[312760101,1706200245077,-157.9,0.0004599,10]
[312760102,1706200245088,-179.09,0.00046,120]
[312760103,1706200245097,-3000.0,0.00046,88]
[312760104,1706200245106,-2421.251241,0.00046122,30]
[312760105,1706200245117,-1060.742747,0.00046122,30]
[312760106,1706200245127,-189.83257,0.00046122,30]
[312760107,1706200245136,-8477.1,0.000462,7]
[312760108,1706200245145,-203.0,0.00046348,15]
[312760109,1706200245154,-9163.71,0.000464,7]
[312760110,1706200245164,-530.98310274,0.00046581,5]
[312760111,1706200245177,-2421.251241,0.00046685,30]
[312760112,1706200245186,-1060.742747,0.00046685,30]
[312760113,1706200245195,-189.83257,0.00046685,30]
[312760114,1706200245205,-412.7,0.00046846,2]
[312760115,1706200245215,-210.19679439,0.00046951,10]
[312760116,1706200245225,-150.0,0.00047166,7]
[312760117,1706200245235,-150.0,0.00047236,7]
[312760118,1706200245245,-2421.251241,0.00047247,30]
[312760119,1706200245256,-1060.742747,0.00047247,30]
[312760120,1706200245266,-189.83257,0.00047247,30]
[312760121,1706200245276,-153.94916634,0.00047318,30]
[312760122,1706200245287,-611.55518383,0.00047319,30]
[312760123,1706200245297,-150.0,0.00047321,7]
[312760124,1706200245307,-153.01763265,0.00047343,30]
[312760125,1706200245317,-153.50449044,0.00047363,30]
[312760126,1706200245326,-203.0,0.00047398,19]
[312760127,1706200245335,-1054.249,0.00047409,2]
[312760128,1706200245344,-1127.141,0.00047409,2]
[312760129,1706200245354,-239.595,0.00047409,2]
[312760130,1706200245364,-319.0,0.00047409,2]
[312760131,1706200245373,-267.28627626,0.00047447,30]
[312760132,1706200245383,-150.0,0.0004754,7]
[312760133,1706200245392,-153.50449044,0.00047577,30]
[312760134,1706200245401,-236.38626783,0.0004768,120]
[312760135,1706200245410,-168.99,0.00047749,2]
[312760136,1706200245423,-161.51298073,0.00047764,30]
[312760137,1706200245433,-611.55518383,0.00047779,30]
[312760138,1706200245442,-8477.1,0.000478,7]
[312760139,1706200245450,-602.78287986,0.0004782,30]
[312760140,1706200245459,-202.5,0.00047821,15]
[312760141,1706200245468,-153.94916634,0.00047851,30]
[312760142,1706200245477,-9163.71,0.000479,7]
[312760143,1706200245486,-611.55518383,0.00047942,30]
[312760144,1706200245495,-150.01,0.00047945,2]
[312760145,1706200245504,-154.88413823,0.00047961,30]
[312760146,1706200245513,-150.0,0.00047969,7]
[312760147,1706200245522,-150.0,0.00047998,7]
[312760148,1706200245532,-170.0,0.00048,120]
[312760149,1706200245541,-150.0,0.00048005,7]
[312760150,1706200245549,-150.0,0.00048021,7]
[312760151,1706200245558,-153.8935686,0.00048033,30]
[312760152,1706200245567,-150.0,0.0004807,7]
[312760153,1706200245576,-150.0,0.00048088,7]
[312760154,1706200245585,-153.02531531,0.00048105,30]
[312760155,1706200245594,-153.85696089,0.00048114,37]
[312760156,1706200245603,-158.16330397,0.00048115,30]
[312760157,1706200245612,-161.01899399,0.00048134,30]
[312760158,1706200245621,-150.0,0.00048137,7]
[312760159,1706200245631,-150.0,0.0004814,7]
[312760160,1706200245640,-530.98310274,0.0004816,5]
[312760161,1706200245649,-4280.74394998,0.00048174,21]
[312760162,1706200245658,-52014.3571591,0.00048174,21]
[312760163,1706200245667,-14002.37060728,0.00048174,21]
[312760164,1706200245678,-48712.25417249,0.00048174,21]
[312760165,1706200245686,-28522.17447639,0.00048174,21]
[312760166,1706200245695,-150.0,0.00048178,7]
[312760167,1706200245704,-150.0,0.00048202,7]
[312760168,1706200245713,-602.78287986,0.00048224,30]
[312760169,1706200245722,-611.55518383,0.0004823,30]
[312760170,1706200245732,-153.94916634,0.00048231,30]
[312760171,1706200245741,-402.10954005,0.00048249,30]
[312760172,1706200245750,-154.88413823,0.00048269,30]
[312760173,1706200245760,-153.8935686,0.00048272,30]
[312760174,1706200245769,-158.16330397,0.00048307,30]
[312760175,1706200245778,-611.55518383,0.00048325,30]
[312760176,1706200245786,-267.28627626,0.0004834,30]
[312760177,1706200245795,-150.0,0.00048405,7]
[312760178,1706200245804,-203.0,0.00048448,22]
[312760179,1706200245813,-150.0,0.00048459,7]
[312760180,1706200245823,-153.48533887,0.00048459,30]
[312760181,1706200245832,-153.50449044,0.00048486,30]
[312760182,1706200245841,-150.0,0.00048508,7]
[312760183,1706200245850,-150.0,0.0004852,7]
[312760184,1706200245861,-150.0,0.00048523,7]
[312760185,1706200245870,-150.0,0.00048537,7]
[312760186,1706200245880,-150.0,0.00048552,7]
[312760187,1706200245890,-153.50449044,0.00048567,30]
[312760188,1706200245899,-150.0,0.00048606,7]
[312760190,1706200245909,-150.0,0.0004862,7]